[Event "FIDE Open World Rapid 2024"]
[Site "New York"]
[Date "2024.12.27"]
[Round "6.9"]
[White "Caruana, Fabiano"]
[Black "Nogerbek, Kazybek"]
[Result "1-0"]
[ECO "A14"]
[WhiteElo "2805"]
[BlackElo "2527"]
[Annotator "TA"]
[PlyCount "112"]
[EventDate "2024.12.14"]
[EventType "swiss"]
[EventCountry "USA"]
[SourceTitle "playchess.com"]
[Source "ChessBase"]
[SourceQuality "1"]
[TimeControl "900+10"]

{[%evp 10,112,24,0,13,2,15,13,4,1,30,36,54,57,44,56,62,35,38,29,32,19,31,32,73,83,87,85,107,83,125,43,50,57,65,67,109,114,277,282,282,281,281,271,268,244,249,244,245,234,222,168,240,202,224,233,250,253,250,233,250,250,285,257,258,239,246,254,509,509,507,483,509,509,507,507,499,452,456,427,438,456,366,366,474,466,500,448,708,741,932,933,1000,903,1001,960,904,0,952,924,1000,1233,4618,4614,29986]} 1. c4 {[%emt 0:00:02]} e6 {[%emt 0:00:07]} 2. g3 {[%emt 0:00:02]} d5 {[%emt 0:00:02]} 3. Bg2 {[%emt 0:00:02]} Nf6 {[%emt 0:00:03]} 4. Nf3 {[%emt 0:00:02]} Be7 {[%emt 0:00:16]} 5. O-O {[%emt 0:00:02]} O-O {[%emt 0:00:03]} 6. d3 {[%emt 0:00:02]} Nc6 {[%emt 0:00:12]} 7. a3 {[%emt 0:00:02]} dxc4 {[%emt 0:02:03]} 8. dxc4 {[%emt 0:00:02]} e5 {[%emt 0:00:17] The position is equal.} 9. Nc3 {[%emt 0:01:46]} h6 {[%emt 0:00:31]} 10. Qc2 {[%emt 0:04:34]} Nd4 {[%emt 0:02:54]} 11. Nxd4 {[%emt 0:00:02]} exd4 {[%emt 0:00:02]} 12. Rd1 {[%emt 0:00:01]} c5 {[%emt 0:00:07]} 13. Nd5 {[%emt 0:01:32]} Nxd5 {[%emt 0:01:01]} 14. Bxd5 {[%emt 0:00:02][%cal Oc1h6]} Bf6 {[%emt 0:00:49]} 15. Rb1 {[%emt 0:00:04]} Qe7 {[%emt 0:01:35]} 16. b4 {[%emt 0:00:28]} cxb4 {[%emt 0:01:25]} 17. Rxb4 {[%emt 0:00:03]} ({Of course not} 17. axb4 Bg4 $14) 17... Re8 {[%emt 0:00:17]} 18. e4 {[%emt 0:01:17]} dxe3 {[%emt 0:02:11]} 19. Bxe3 {[%emt 0:00:02]} Bg5 {[%emt 0:00:01]} 20. Rb3 {[%emt 0:05:06] White is much more active.} (20. Bd4 $16) 20... Bxe3 $1 $14 {[%emt 0:01:25]} 21. Rxe3 {[%emt 0:00:01]} Be6 {[%emt 0:00:01][%cal Bc8e6,Be6c4,Bc4d5][%mdl 32]} 22. Qa4 {[%emt 0:00:03]} Qc5 {[%emt 0:02:01] White leaves nothing to chance now.} 23. Bxb7 {[%emt 0:01:04]} Qxc4 {[%emt 0:00:49] [#]} (23... Rab8 $16) 24. Qxc4 $18 {[%emt 0:00:08]} Bxc4 {[%emt 0:00:02]} 25. Bxa8 {[%emt 0:00:01]} Rxa8 $16 {[%emt 0:00:01][%mdl 4096] Endgame. KRR-KRB} 26. Re7 {[%emt 0:00:29]} a5 {[%emt 0:00:16]} 27. Rdd7 {[%emt 0:00:17]} Rb8 {[%emt 0:00:33]} 28. Ra7 {[%emt 0:01:44]} Rb1+ {[%emt 0:00:13]} 29. Kg2 {[%emt 0:00:01]} Bd5+ {[%emt 0:00:01]} 30. Kh3 {[%emt 0:00:09]} Rb5 {[%emt 0:00:20]} (30... Be6+ $142 31. Kg2 Bd5+ 32. f3 Rb2+ 33. Kg1 a4 34. Rxa4 Bxf3) 31. Re3 {[%emt 0:00:29]} Be6+ {[%emt 0:00:18]} 32. Kg2 {[%emt 0:00:02]} Bd5+ {[%emt 0:00:11]} 33. f3 {[%emt 0:00:07]} Bb3 {[%emt 0:00:20]} 34. g4 {[%emt 0:00:22]} a4 {[%emt 0:00:03]} 35. h4 {[%emt 0:00:08]} g6 {[%emt 0:00:16]} 36. Kg3 {[%emt 0:00:04]} Kg7 {[%emt 0:00:07]} 37. Ra8 {[%emt 0:00:15]} Rc5 {[%emt 0:00:11]} 38. Ree8 {[%emt 0:00:02]} g5 $2 {[%emt 0:00:13]} (38... Kf6 39. Rec8 Rd5) 39. Rg8+ $18 {[%emt 0:00:05]} Kf6 {[%emt 0:00:03]} 40. Ra6+ {[%emt 0:00:15]} Be6 {[%emt 0:00:17]} 41. hxg5+ {[%emt 0:00:22]} hxg5 {[%emt 0:00:02]} 42. Rxa4 {[%emt 0:00:02]} Rd5 {[%emt 0:00:08]} 43. Rh8 {[%emt 0:00:35]} Rd3 {[%emt 0:00:03]} 44. Rh6+ {[%emt 0:00:01]} Ke5 {[%emt 0:00:14]} 45. Re4+ {[%emt 0:00:08]} Kd6 {[%emt 0:00:15]} 46. a4 {[%emt 0:00:01][%cal Ba3a4,Ba4a5][%mdl 32]} Rd5 {[%emt 0:00:10]} 47. Rh1 {[%emt 0:00:14]} Rd3 {[%emt 0:00:04]} 48. Rhe1 {[%emt 0:00:07]} Bd5 {[%emt 0:00:16]} (48... Kc6 $142 49. Rxe6+ fxe6 50. Rxe6+ Kd7) 49. R4e3 {[%emt 0:00:01]} Rd2 {[%emt 0:00:17]} 50. Ra3 {[%emt 0:00:04]} Bc4 {[%emt 0:00:07]} 51. a5 {[%emt 0:00:04] [#] Strongly threatening a6.} Ba6 {[%emt 0:00:01]} 52. Rb3 {[%emt 0:00:11] Black must now prevent Rb6+.} Bc4 {[%emt 0:00:07]} 53. Ra3 {[%emt 0:00:12]} Ba6 {[%emt 0:00:01]} 54. Raa1 {[%emt 0:00:03] White is clearly winning.} Rc2 {[%emt 0:00:24]} 55. Rad1+ {[%emt 0:00:01]} Kc5 {[%emt 0:00:01]} 56. Rc1 {[%emt 0:00:03]} Kd5 {[%emt 0:00:14] Weighted Error Value: White=0.22 (precise) /Black=0.25 (precise) .  Loses game:     	---       	Black=1      Mistake:       	White=1     	Black=3      Inaccurate:     	White=1     	Black=4      OK:         	White=20    	Black=8      Best:        	White=5     	Black=2      Strong:       	---       	Black=1} 1-0

[Event "FIDE Open World Rapid 2024"]
[Site "New York"]
[Date "2024.12.27"]
[Round "6.9"]
[White "Chasin, Nico"]
[Black "Chirila, Ioan-Cristian"]
[Result "1-0"]
[ECO "D96"]
[WhiteElo "2417"]
[BlackElo "2530"]
[Annotator "ChessBase"]
[PlyCount "161"]
[EventDate "2024.12.14"]
[EventType "swiss"]
[EventCountry "USA"]
[SourceTitle "playchess.com"]
[Source "ChessBase"]
[SourceQuality "1"]
[TimeControl "900+10"]

1. d4 {[%emt 0:00:03]} Nf6 {[%emt 0:00:04]} 2. c4 {[%emt 0:00:02]} g6 {[%emt 0:00:09]} 3. Nc3 {[%emt 0:00:06]} d5 {[%emt 0:00:04]} 4. Qb3 {[%emt 0:00:22]} dxc4 {[%emt 0:01:00]} 5. Qxc4 {[%emt 0:00:02]} Bg7 {[%emt 0:00:17]} 6. Nf3 {[%emt 0:00:04]} O-O {[%emt 0:00:07]} 7. Bf4 {[%emt 0:00:02]} Be6 {[%emt 0:02:02]} 8. Qxc7 {[%emt 0:01:05]} Qxc7 {[%emt 0:00:01]} 9. Bxc7 {[%emt 0:00:02]} Nc6 {[%emt 0:00:02]} 10. e3 {[%emt 0:02:47]} Rac8 {[%emt 0:00:02]} 11. Bg3 {[%emt 0:00:08]} Nb4 {[%emt 0:05:09]} 12. Kd2 {[%emt 0:00:24]} Bf5 {[%emt 0:00:46]} 13. a3 {[%emt 0:01:46]} Nc6 {[%emt 0:01:12]} 14. Bd3 {[%emt 0:01:08]} Na5 {[%emt 0:01:00]} 15. Bxf5 {[%emt 0:00:01]} Nb3+ {[%emt 0:00:09]} 16. Kd3 {[%emt 0:00:28]} gxf5 {[%emt 0:00:02]} 17. Rad1 {[%emt 0:00:09]} Rfd8 {[%emt 0:01:12]} 18. Nd2 {[%emt 0:00:07]} Nxd2 {[%emt 0:01:16]} 19. Rxd2 {[%emt 0:00:23]} Nh5 {[%emt 0:00:04]} 20. Bh4 {[%emt 0:00:03]} Rd7 {[%emt 0:00:19]} 21. Ke2 {[%emt 0:00:09]} Rc6 {[%emt 0:00:57]} 22. Rhd1 {[%emt 0:00:33]} f4 {[%emt 0:00:16]} 23. e4 {[%emt 0:01:10]} Rc4 {[%emt 0:00:51]} 24. Kf3 {[%emt 0:00:02]} Rdxd4 {[%emt 0:01:05]} 25. Rxd4 {[%emt 0:00:01]} Bxd4 {[%emt 0:00:02]} 26. Bxe7 {[%emt 0:00:01]} Kg7 {[%emt 0:00:17]} 27. Rd3 {[%emt 0:01:07]} b6 {[%emt 0:00:27]} 28. Bb4 {[%emt 0:04:22]} a5 {[%emt 0:00:06]} 29. Bd6 {[%emt 0:00:01]} Kg6 {[%emt 0:00:03]} 30. Nd5 {[%emt 0:00:19]} Bxb2 {[%emt 0:00:09]} 31. Nxb6 {[%emt 0:00:03]} Rc6 {[%emt 0:00:34]} 32. Nd7 {[%emt 0:00:02]} f5 {[%emt 0:00:06]} 33. Nf8+ {[%emt 0:00:20]} Kf7 {[%emt 0:00:05]} 34. Nxh7 {[%emt 0:00:09]} fxe4+ {[%emt 0:00:15]} 35. Kxe4 {[%emt 0:00:04]} Kg6 {[%emt 0:00:31]} 36. Nf8+ {[%emt 0:00:01]} Kf7 {[%emt 0:00:04]} 37. Nd7 {[%emt 0:00:01]} Rc2 {[%emt 0:00:16]} 38. Kf3 {[%emt 0:00:09]} Ke6 {[%emt 0:00:14]} 39. Nc5+ {[%emt 0:00:01]} Kf5 {[%emt 0:00:02]} 40. Rd5+ {[%emt 0:00:05]} Kg6 {[%emt 0:00:01]} 41. Ne4 {[%emt 0:00:01]} Ng7 {[%emt 0:00:21]} 42. Rd2 {[%emt 0:00:49]} Rxd2 {[%emt 0:00:17]} 43. Nxd2 {[%emt 0:00:02]} Nf5 {[%emt 0:00:01]} 44. Nc4 {[%emt 0:00:13]} Nxd6 {[%emt 0:00:17]} 45. Nxb2 {[%emt 0:00:02]} Kf5 {[%emt 0:00:02]} 46. a4 {[%emt 0:00:22]} Ne4 {[%emt 0:00:04]} 47. Nc4 {[%emt 0:00:04]} Nc3 {[%emt 0:00:07]} 48. Nxa5 {[%emt 0:00:14]} Nxa4 {[%emt 0:00:02]} 49. Nb3 {[%emt 0:00:15]} Ke5 {[%emt 0:00:06]} 50. Kg4 {[%emt 0:00:20]} Nc3 {[%emt 0:00:15]} 51. Nd2 {[%emt 0:00:05]} Nd1 {[%emt 0:00:11]} 52. Kf3 {[%emt 0:00:01]} Nb2 {[%emt 0:00:03]} 53. h4 {[%emt 0:00:12]} Kf5 {[%emt 0:00:01]} 54. Nb3 {[%emt 0:00:09]} Nd3 {[%emt 0:00:15]} 55. Nd4+ {[%emt 0:01:04]} Ke5 {[%emt 0:00:01]} 56. Nc6+ {[%emt 0:00:14]} Kf5 {[%emt 0:00:09]} 57. Ne7+ {[%emt 0:00:45]} Ke6 {[%emt 0:00:02]} 58. Ng6 {[%emt 0:00:09]} Kf5 {[%emt 0:00:01]} 59. Ne7+ {[%emt 0:00:22]} Ke6 {[%emt 0:00:03]} 60. Nc6 {[%emt 0:00:03]} Kd5 {[%emt 0:00:30]} 61. h5 {[%emt 0:00:15]} Ke6 {[%emt 0:00:48]} 62. Ke4 {[%emt 0:01:10]} Nxf2+ {[%emt 0:00:09]} 63. Kxf4 {[%emt 0:00:02]} Kf6 {[%emt 0:00:06]} 64. Ne5 {[%emt 0:00:00]} Kg7 {[%emt 0:00:08]} 65. Kf5 {[%emt 0:00:16]} Nh1 {[%emt 0:00:19]} 66. g4 {[%emt 0:00:06]} Ng3+ {[%emt 0:00:06]} 67. Kf4 {[%emt 0:00:08]} Ne2+ {[%emt 0:00:03]} 68. Kf3 {[%emt 0:00:14]} Ng1+ {[%emt 0:00:18]} 69. Kf4 {[%emt 0:00:12]} Ne2+ {[%emt 0:00:01]} 70. Kg5 {[%emt 0:00:01]} Nd4 {[%emt 0:00:01]} 71. h6+ {[%emt 0:00:26]} Kh7 {[%emt 0:00:01]} 72. Kh5 {[%emt 0:00:01]} Ne2 {[%emt 0:00:43]} 73. g5 {[%emt 0:00:01]} Ng3+ {[%emt 0:00:09]} 74. Kg4 {[%emt 0:00:03]} Ne4 {[%emt 0:00:02]} 75. Kf5 {[%emt 0:00:26]} Ng3+ {[%emt 0:00:04]} 76. Kf4 {[%emt 0:00:07]} Ne2+ {[%emt 0:00:03]} 77. Kg4 {[%emt 0:00:01]} Nd4 {[%emt 0:00:28]} 78. Kh5 {[%emt 0:00:03]} Ne6 {[%emt 0:00:04]} 79. g6+ {[%emt 0:00:02]} Kg8 {[%emt 0:00:05]} 80. Kg4 {[%emt 0:00:10]} Nf8 {[%emt 0:00:32]} 81. Kf5 {[%emt 0:00:02]} 1-0

[Event "FIDE Open World Rapid 2024"]
[Site "New York"]
[Date "2024.12.27"]
[Round "6.10"]
[White "Vachier-Lagrave, Maxime"]
[Black "Pichot, Alan"]
[Result "0-1"]
[ECO "C70"]
[WhiteElo "2731"]
[BlackElo "2637"]
[Annotator "TA"]
[PlyCount "100"]
[EventDate "2024.12.14"]
[EventType "swiss"]
[EventCountry "USA"]
[SourceTitle "playchess.com"]
[Source "ChessBase"]
[SourceQuality "1"]
[TimeControl "900+10"]

{[%evp 34,100,58,59,65,65,65,6,8,6,0,0,2,0,0,-43,0,0,0,-79,-24,-217,0,-210,-197,-252,-254,-270,-243,-306,-216,-215,-221,-221,-222,-325,-302,-437,-441,-559,-559,-853,-847,-905,-952,-956,-860,-1054,-1297,-1195,-997,-1200,-1193,-1356,-1272,-1513,-1502,-1660,-1645,-2071,-1688,-2130,-2062,-2819,-2493,-29983,-29984,-29981,-29982]} 1. e4 {[%emt 0:00:01]} e5 {[%emt 0:00:03]} 2. Nf3 {[%emt 0:00:02]} Nc6 {[%emt 0:00:02]} 3. Bb5 {[%emt 0:00:01]} a6 {[%emt 0:00:03]} 4. Ba4 {[%emt 0:00:01]} b5 {[%emt 0:00:04]} 5. Bb3 {[%emt 0:00:02]} Na5 {[%emt 0:00:03]} 6. O-O {[%emt 0:00:45]} d6 {[%emt 0:00:04]} 7. d4 {[%emt 0:00:21]} exd4 {[%emt 0:00:03]} 8. Re1 {[%emt 0:00:01]} Nxb3 {[%emt 0:00:06]} 9. axb3 {[%emt 0:00:02]} c5 {[%emt 0:00:09]} 10. c3 {[%emt 0:00:06]} Be7 {[%emt 0:00:16]} 11. cxd4 {[%emt 0:00:03]} Bb7 {[%emt 0:00:03]} 12. Nc3 {[%emt 0:01:02]} Nf6 {[%emt 0:00:02]} 13. Nh4 {[%emt 0:00:43]} b4 {[%emt 0:00:05]} 14. Nd5 {[%emt 0:00:02]} Nxd5 {[%emt 0:00:04]} 15. exd5 {[%emt 0:00:03]} O-O {[%emt 0:00:02]} 16. Nf5 {[%emt 0:00:07]} Re8 {[%emt 0:00:50]} 17. Bf4 {[%emt 0:02:50]} Bf8 {[%emt 0:00:02]} 18. dxc5 {[%emt 0:03:13]} Rxe1+ {[%emt 0:01:57]} 19. Qxe1 {[%emt 0:00:01]} dxc5 {[%emt 0:00:01]} 20. Rd1 {[%emt 0:00:13]} (20. d6 $14) 20... Qd7 $11 {[%emt 0:03:45]} (20... Bxd5 $2 21. Qd2 $18) 21. Ne3 $1 {[%emt 0:00:02]} Re8 {[%emt 0:00:24]} 22. f3 {[%emt 0:00:24]} g6 {[%emt 0:05:30]} 23. Qd2 {[%emt 0:00:03]} Bg7 {[%emt 0:00:15]} 24. Kh1 {[%emt 0:00:02]} h5 {[%emt 0:00:48]} 25. d6 $1 {[%emt 0:01:23]} Bd4 {[%emt 0:00:26]} 26. Re1 {[%emt 0:00:37]} (26. Nc2 $11 {remains equal.} Bh8 27. Bg3) 26... h4 {[%emt 0:02:15]} (26... Re6 $17) 27. Ng4 $2 {[%emt 0:00:46]} (27. h3 $1 $11 {and White is okay.}) 27... Rxe1+ $19 {[%emt 0:00:08]} 28. Qxe1 {[%emt 0:00:02]} h3 $1 {[%emt 0:00:07]} (28... Bxb2 29. Be5 Bxe5 30. Qxe5 $18) 29. Nf2 {[%emt 0:03:45]} (29. Qg3) 29... hxg2+ {[%emt 0:01:07]} (29... Bxb2 30. Be5 Bc3 31. Bxc3 bxc3 32. Qxc3 hxg2+ (32... Qxd6 33. Nxh3 Qd1+ 34. Ng1 $15) 33. Kxg2 Qxd6 34. Nd3 $17) 30. Kxg2 {[%emt 0:00:01]} Qf5 {[%emt 0:00:08]} (30... Bxb2 31. Qe7 Bc6 32. Qxd7 Bxd7 33. Nd3 $15) 31. Qd2 {[%emt 0:00:13]} g5 {[%emt 0:00:40]} 32. d7 {[%emt 0:00:06]} Qxd7 {[%emt 0:00:03]} (32... Qxf4 $2 {too greedy.} 33. d8=Q+ (33. d8=R+ Kg7 $11) 33... Kg7 34. Qxg5+ Qxg5+ 35. Qxg5+ $18) 33. Bxg5 {[%emt 0:00:25]} Qf5 {[%emt 0:00:08]} 34. Bf4 {[%emt 0:00:11]} (34. Qf4 $142 Qxf4 35. Bxf4) 34... Bd5 $19 {[%emt 0:00:20]} 35. h3 {[%emt 0:01:38]} (35. Ne4 {might work better.}) 35... Bxb3 {[%emt 0:00:04]} 36. Kg3 {[%emt 0:00:01]} Qg6+ {[%emt 0:00:32]} 37. Ng4 {[%emt 0:00:01]} f5 {[%emt 0:00:23]} 38. Qd3 {[%emt 0:00:07]} Bf7 {[%emt 0:00:03]} 39. Qe2 {[%emt 0:00:00]} fxg4 {[%emt 0:00:04]} 40. hxg4 {[%emt 0:00:02]} Qe6 {[%emt 0:00:08]} 41. Qd2 {[%emt 0:00:01]} Bg6 {[%emt 0:00:10]} 42. Kh3 {[%emt 0:00:19]} a5 {[%emt 0:00:03]} 43. Qd1 {[%emt 0:00:02]} Qd5 {[%emt 0:00:05]} 44. Qe2 {[%emt 0:00:05]} Kf7 {[%emt 0:00:11]} 45. Kg3 {[%emt 0:00:06]} c4 {[%emt 0:00:02]} 46. Qd2 {[%emt 0:00:12]} c3 {[%emt 0:00:05]} 47. bxc3 {[%emt 0:00:01]} bxc3 {[%emt 0:00:02]} 48. Qe2 {[%emt 0:00:01]} c2 {[%emt 0:00:30]} 49. Qa6 {[%emt 0:00:03]} Be5 {[%emt 0:00:13]} 50. Qa7+ {[%emt 0:00:02]} Kg8 {[%emt 0:00:04]} 0-1

[Event "FIDE Open World Rapid 2024"]
[Site "New York"]
[Date "2024.12.27"]
[Round "6.10"]
[White "Adewumi, Tanitoluwa"]
[Black "Xiong, Jeffery"]
[Result "0-1"]
[ECO "A12"]
[WhiteElo "2349"]
[BlackElo "2636"]
[Annotator "ChessBase"]
[PlyCount "86"]
[EventDate "2024.12.14"]
[EventType "swiss"]
[EventCountry "USA"]
[SourceTitle "playchess.com"]
[Source "ChessBase"]
[SourceQuality "1"]
[TimeControl "900+10"]

1. Nf3 {[%emt 0:00:06]} d5 {[%emt 0:00:02]} 2. b3 {[%emt 0:00:01]} Bf5 {[%emt 0:00:03]} 3. Bb2 {[%emt 0:00:04]} e6 {[%emt 0:00:05]} 4. d3 {[%emt 0:00:00]} h6 {[%emt 0:00:07]} 5. g3 {[%emt 0:00:00]} Nf6 {[%emt 0:00:04]} 6. Bg2 {[%emt 0:00:02]} Be7 {[%emt 0:00:02]} 7. Nbd2 {[%emt 0:00:05]} O-O {[%emt 0:00:21]} 8. c4 {[%emt 0:00:13]} c6 {[%emt 0:00:21]} 9. O-O {[%emt 0:00:12]} Bh7 {[%emt 0:00:04]} 10. Qc2 {[%emt 0:00:05]} a5 {[%emt 0:00:07]} 11. a3 {[%emt 0:00:02]} Re8 {[%emt 0:00:15]} 12. h3 {[%emt 0:00:11]} Bf8 {[%emt 0:00:03]} 13. Bc3 {[%emt 0:00:04]} c5 {[%emt 0:00:07]} 14. Ne5 {[%emt 0:01:39]} Bd6 {[%emt 0:01:53]} 15. Bb2 {[%emt 0:01:12]} Qc7 {[%emt 0:01:01]} 16. Ng4 {[%emt 0:01:44]} Nxg4 {[%emt 0:00:44]} 17. hxg4 {[%emt 0:00:02]} Nc6 {[%emt 0:00:23]} 18. Rae1 {[%emt 0:02:46]} d4 {[%emt 0:05:12]} 19. Nf3 {[%emt 0:02:23]} e5 {[%emt 0:01:54]} 20. e4 {[%emt 0:00:26]} dxe3 {[%emt 0:00:01]} 21. Rxe3 {[%emt 0:00:04]} Nd4 {[%emt 0:00:07]} 22. Bxd4 {[%emt 0:01:41]} cxd4 {[%emt 0:01:26]} 23. Re2 {[%emt 0:00:01]} Bxa3 {[%emt 0:00:08]} 24. Nh4 {[%emt 0:00:13]} Bb4 {[%emt 0:00:40]} 25. Bd5 {[%emt 0:00:33]} Rad8 {[%emt 0:00:12]} 26. Qd1 {[%emt 0:00:11]} Qc8 {[%emt 0:02:21]} 27. Ra2 {[%emt 0:00:56]} e4 {[%emt 0:00:03]} 28. dxe4 {[%emt 0:00:28]} Bxe4 {[%emt 0:00:03]} 29. Qxd4 {[%emt 0:00:24]} Qxg4 {[%emt 0:00:51]} 30. f3 {[%emt 0:00:03]} Qc8 {[%emt 0:00:25]} 31. Qxe4 {[%emt 0:01:16]} Rxe4 {[%emt 0:00:06]} 32. fxe4 {[%emt 0:00:01]} Qh3 {[%emt 0:00:16]} 33. Rf3 {[%emt 0:02:03]} Bc5+ {[%emt 0:00:15]} 34. Raf2 {[%emt 0:00:10]} Rd7 {[%emt 0:00:36]} 35. e5 {[%emt 0:00:35]} Bxf2+ {[%emt 0:00:14]} 36. Kxf2 {[%emt 0:00:02]} Qh2+ {[%emt 0:00:10]} 37. Ke3 {[%emt 0:00:06]} Qb2 {[%emt 0:00:13]} 38. e6 {[%emt 0:00:11]} Qe5+ {[%emt 0:00:08]} 39. Kf2 {[%emt 0:00:01]} fxe6 {[%emt 0:00:15]} 40. Rf8+ {[%emt 0:00:01]} Kxf8 {[%emt 0:00:02]} 41. Ng6+ {[%emt 0:00:01]} Ke8 {[%emt 0:00:04]} 42. Nxe5 {[%emt 0:00:00]} exd5 {[%emt 0:00:01]} 43. Nxd7 {[%emt 0:00:29]} Kxd7 {[%emt 0:00:02]} 0-1

[Event "FIDE Open World Rapid 2024"]
[Site "New York"]
[Date "2024.12.27"]
[Round "6.11"]
[White "Firouzja, Alireza"]
[Black "Antipov, Mikhail Al."]
[Result "1-0"]
[ECO "C50"]
[WhiteElo "2763"]
[BlackElo "2594"]
[Annotator "TA"]
[PlyCount "119"]
[EventDate "2024.12.14"]
[EventType "swiss"]
[EventCountry "USA"]
[SourceTitle "playchess.com"]
[Source "ChessBase"]
[SourceQuality "1"]
[TimeControl "900+10"]

{[%evp 36,119,95,39,50,37,70,63,66,49,54,66,61,20,31,5,22,19,6,17,26,15,31,8,60,52,51,50,101,77,92,93,93,93,85,83,93,79,79,86,131,131,120,104,158,158,158,172,158,158,162,172,173,32,304,304,304,304,297,303,480,484,508,509,507,507,504,504,582,582,547,517,686,645,561,572,572,526,760,760,760,526,760,735,659,652]} 1. e4 {[%emt 0:00:01]} e5 {[%emt 0:00:01]} 2. Nf3 {[%emt 0:00:02]} Nc6 {[%emt 0:00:02]} 3. Bc4 {[%emt 0:00:03]} Bc5 {[%emt 0:00:02]} 4. d3 {[%emt 0:00:04]} a6 {[%emt 0:00:02]} 5. c3 {[%emt 0:00:07]} Ba7 {[%emt 0:00:24]} 6. a4 {[%emt 0:00:32]} d6 {[%emt 0:00:07]} 7. O-O {[%emt 0:00:23]} h6 {[%emt 0:00:04]} 8. Re1 {[%emt 0:00:33]} Nge7 {[%emt 0:00:14]} 9. Nbd2 {[%emt 0:01:47]} O-O {[%emt 0:00:03]} 10. Nf1 {[%emt 0:00:21]} Kh8 {[%emt 0:00:07]} 11. Nh4 {[%emt 0:02:24]} f5 {[%emt 0:04:59]} 12. exf5 {[%emt 0:00:15]} Bxf5 {[%emt 0:01:35]} 13. Nxf5 {[%emt 0:01:02]} Rxf5 {[%emt 0:00:02]} 14. Be3 {[%emt 0:00:08]} Qf8 {[%emt 0:00:52]} 15. d4 {[%emt 0:00:54]} exd4 {[%emt 0:00:32]} 16. cxd4 {[%emt 0:00:01]} d5 {[%emt 0:03:30]} 17. Ba2 {[%emt 0:01:16]} Rf4 {[%emt 0:00:46]} 18. Bxf4 {[%emt 0:02:56]} Qxf4 {[%emt 0:00:02]} 19. Bb1 {[%emt 0:01:24]} (19. Ne3 $16) 19... Rf8 $14 {[%emt 0:00:50]} (19... Bxd4 20. Qc2 g6 21. Ra3) 20. Qc2 {[%emt 0:00:55]} Nf5 {[%emt 0:00:25]} 21. Ra3 {[%emt 0:00:15]} Ncxd4 {[%emt 0:00:15]} 22. Qd2 {[%emt 0:00:02]} Nd6 {[%emt 0:01:59]} 23. Qxf4 {[%emt 0:00:36]} Rxf4 {[%emt 0:00:01]} 24. Rae3 {[%emt 0:00:24]} Kg8 $1 {[%emt 0:00:29]} 25. Ng3 {[%emt 0:00:36]} Nc6 {[%emt 0:00:04]} 26. Rf3 {[%emt 0:00:38]} Rxf3 {[%emt 0:00:15]} 27. gxf3 {[%emt 0:00:01]} Kf7 {[%emt 0:00:02]} 28. f4 {[%emt 0:00:23]} Bd4 {[%emt 0:00:28]} 29. b3 {[%emt 0:00:33]} Bc3 {[%emt 0:00:19]} (29... Ne7 $11) 30. Rd1 $14 {[%emt 0:00:02]} Ne7 {[%emt 0:00:35]} 31. Rc1 {[%emt 0:00:20]} d4 {[%emt 0:00:08]} (31... Ba5 $14) 32. Ne4 {[%emt 0:00:40]} Nd5 {[%emt 0:00:04]} 33. Nxd6+ {[%emt 0:00:05]} cxd6 {[%emt 0:00:01]} 34. f5 {[%emt 0:00:21]} Nf4 {[%emt 0:00:23]} 35. Rd1 {[%emt 0:00:02]} Kf6 {[%emt 0:00:29]} 36. h4 $1 {[%emt 0:00:14]} Ke5 {[%emt 0:00:22]} 37. Kh2 {[%emt 0:00:01]} b5 {[%emt 0:00:34]} 38. axb5 {[%emt 0:00:04]} axb5 {[%emt 0:00:01]} 39. Kg3 {[%emt 0:00:01]} b4 {[%emt 0:00:10]} ({Better is} 39... Nd5 40. Kf3 Ne7) 40. Kf3 $16 {[%emt 0:00:02]} d5 {[%emt 0:00:14]} 41. Bc2 {[%emt 0:00:11]} Nh5 {[%emt 0:00:12]} 42. Rg1 {[%emt 0:00:04]} Nf4 {[%emt 0:00:06]} 43. Rxg7 {[%emt 0:00:13]} d3 {[%emt 0:00:01] [#]} 44. Bd1 {[%emt 0:00:00]} ({Only move:} 44. Bb1 $1 $18) 44... d2 $2 {[%emt 0:00:10][%mdl 8192]} (44... Bd2 $1 $14) 45. Re7+ $18 {[%emt 0:00:23]} Kf6 {[%emt 0:00:10]} 46. Rd7 {[%emt 0:00:13]} Ke5 {[%emt 0:00:24]} 47. f6 {[%emt 0:00:02]} Ng6 {[%emt 0:00:11]} (47... Ne6 $142 48. f7 Kf6 49. Rxd5 Kxf7) 48. h5 $18 {[%emt 0:01:12]} Nf8 {[%emt 0:00:00]} 49. Rd8 {[%emt 0:00:19]} Ne6 {[%emt 0:00:02]} 50. f7 {[%emt 0:00:06]} Ng5+ {[%emt 0:00:01]} 51. Ke3 {[%emt 0:00:00]} d4+ {[%emt 0:00:15]} 52. Kd3 {[%emt 0:00:02]} Nxf7 {[%emt 0:00:01] [#]} 53. f4+ $1 {[%emt 0:00:01]} Kf6 {[%emt 0:00:36]} 54. Rd7 {[%emt 0:00:03]} Ke6 {[%emt 0:00:07]} 55. Bg4+ {[%emt 0:00:03]} Kf6 {[%emt 0:00:01]} 56. Kc2 {[%emt 0:00:19]} Nh8 {[%emt 0:00:04]} 57. Rd6+ {[%emt 0:00:08]} Kg7 {[%emt 0:00:16]} 58. Be6 {[%emt 0:00:04]} d3+ {[%emt 0:00:26]} 59. Rxd3 {[%emt 0:00:10]} (59. Kxd3 $2 {too greedy.} d1=Q+ (59... d1=R+ $2 60. Kc4 $19) 60. Ke3 Qxd6 $19) 59... Kf6 {[%emt 0:00:01]} 60. Rd6 {[%emt 0:00:07]} 1-0

[Event "FIDE Open World Rapid 2024"]
[Site "New York"]
[Date "2024.12.27"]
[Round "6.11"]
[White "Onischuk, Alexander"]
[Black "Madaminov, Mukhiddin"]
[Result "1-0"]
[ECO "A36"]
[WhiteElo "2640"]
[BlackElo "2501"]
[Annotator "ChessBase"]
[PlyCount "57"]
[EventDate "2024.12.14"]
[EventType "swiss"]
[EventCountry "USA"]
[SourceTitle "playchess.com"]
[Source "ChessBase"]
[SourceQuality "1"]
[TimeControl "900+10"]

1. c4 {[%emt 0:00:02]} c5 {[%emt 0:00:06]} 2. Nc3 {[%emt 0:00:12]} g6 {[%emt 0:00:03]} 3. g3 {[%emt 0:00:03]} Bg7 {[%emt 0:00:03]} 4. Bg2 {[%emt 0:00:02]} Nc6 {[%emt 0:00:04]} 5. Nf3 {[%emt 0:00:03]} e6 {[%emt 0:00:05]} 6. O-O {[%emt 0:00:39]} Nge7 {[%emt 0:00:03]} 7. e4 {[%emt 0:01:11]} O-O {[%emt 0:00:33]} 8. d3 {[%emt 0:00:10]} d6 {[%emt 0:00:51]} 9. a3 {[%emt 0:00:20]} f5 {[%emt 0:00:19]} 10. Rb1 {[%emt 0:00:45]} e5 {[%emt 0:00:51]} 11. b4 {[%emt 0:00:36]} f4 {[%emt 0:00:55]} 12. Nd5 {[%emt 0:00:36]} b6 {[%emt 0:02:32]} 13. h3 {[%emt 0:02:08]} Nd4 {[%emt 0:01:25]} 14. gxf4 {[%emt 0:03:16]} exf4 {[%emt 0:01:33]} 15. Nxd4 {[%emt 0:00:20]} Nxd5 {[%emt 0:04:23]} 16. Nc6 {[%emt 0:02:29]} Qg5 {[%emt 0:00:48]} 17. cxd5 {[%emt 0:00:42]} Bxh3 {[%emt 0:00:54]} 18. Qf3 {[%emt 0:00:02]} Bd7 {[%emt 0:00:29]} 19. bxc5 {[%emt 0:00:27]} Qh4 {[%emt 0:00:47]} 20. cxd6 {[%emt 0:01:01]} Bg4 {[%emt 0:00:19]} 21. Qxf4 {[%emt 0:00:07]} Rxf4 {[%emt 0:00:10]} 22. Bxf4 {[%emt 0:00:02]} Bd7 {[%emt 0:00:31]} 23. Bg3 {[%emt 0:00:04]} Qg5 {[%emt 0:00:04]} 24. e5 {[%emt 0:00:17]} h5 {[%emt 0:01:03]} 25. Rb4 {[%emt 0:00:04]} Bxc6 {[%emt 0:00:18]} 26. dxc6 {[%emt 0:00:04]} Bxe5 {[%emt 0:00:01]} 27. Rb5 {[%emt 0:00:30]} h4 {[%emt 0:00:08]} 28. Rxe5 {[%emt 0:00:03]} Qg4 {[%emt 0:00:12]} 29. Re4 {[%emt 0:00:05]} 1-0